bitfinex-derivatives/quotes_SOLF0:USTF0_20240930
["timestamp","ask_amount","ask_price","bid_price","bid_amount"]
[1727698131708,1.2493,155.44,155.39,0.12502]
[1727698131709,3.2173,155.4,155.39,0.12502]
[1727698132508,7.91,155.43,155.39,0.12502]
[1727698132911,3.2172,155.41,155.39,0.12502]
[1727698133413,3.2169,155.42,155.39,0.12502]
[1727698133710,7.91,155.43,155.39,0.12502]
[1727698134413,3.2172,155.41,155.39,0.12502]
[1727698134607,7.91,155.43,155.39,0.12502]
[1727698134811,3.2173,155.4,155.39,0.12502]
[1727698140014,7.91,155.43,155.39,0.12502]
[1727698140217,3.2171,155.41,155.39,0.12502]
[1727698140512,2.5064,155.44,155.4,7.91]
[1727698140513,1.2493,155.44,155.4,7.91]
[1727698140712,56.55874791,155.48,155.42,7.91]
[1727698140713,3.2164,155.45,155.42,7.91]
[1727698140918,56.55874791,155.48,155.43,7.91]
[1727698141515,3.2166,155.44,155.43,7.91]
[1727698145315,3.2164,155.45,155.43,7.91]
[1727698145814,56.55874791,155.48,155.44,7.91]
[1727698146021,3.216,155.47,155.46,7.91]
[1727698146211,2.6439,155.5,155.46,7.91]
[1727698146417,1.2839,155.5,155.47,7.91]
[1727698146722,3.2156,155.48,155.47,7.91]
[1727698148219,3.2156,155.48,155.46,7.91]
[1727698150719,3.2156,155.48,155.4,1.3362]
[1727698150720,3.2161,155.46,155.45,7.91]
[1727698151522,9.1939,155.5,155.45,7.91]
[1727698151723,3.2159,155.47,155.45,7.91]
[1727698152022,3.2159,155.47,155.46,7.91]
[1727698152225,3.2157,155.48,155.46,7.91]
[1727698152524,3.2157,155.48,155.47,7.91]
[1727698153223,3.2155,155.49,155.47,7.91]
[1727698153616,0.12502,155.51,155.48,7.91]
[1727698153928,0.12502,155.51,155.5,7.91]
[1727698154129,3.34012,155.51,155.5,7.91]
[1727698156624,0.12502,155.51,155.48,11.1256]
[1727698156821,3.2154,155.5,155.48,11.1256]
[1727698158828,3.2154,155.5,155.48,7.91]
[1727698161032,0.12502,155.51,155.48,7.91]
[1727698161530,0.12502,155.51,155.48,11.1254]
[1727698161829,0.12502,155.51,155.5,7.91]
[1727698162525,3.214,155.56,155.53,3.2145]
[1727698162825,2.6656,155.59,155.55,7.91]
[1727698163026,3.33892,155.57,155.55,7.91]
[1727698163730,0.12502,155.57,155.54,7.91]
[1727698163933,3.214,155.56,155.54,7.91]
[1727698164336,0.12502,155.57,155.54,11.1244]
[1727698164337,3.33902,155.57,155.54,11.1244]
[1727698166535,3.33902,155.57,155.55,7.91]
[1727698171837,3.214,155.56,155.55,7.91]
[1727698174139,3.33892,155.57,155.55,7.91]
[1727698174836,3.33892,155.57,155.56,7.91]
[1727698175032,0.12502,155.57,155.56,11.124]
[1727698179141,59.72505878,155.61,155.58,3.2135]
[1727698179336,59.72505878,155.61,155.6,7.91]
[1727698180141,3.2131,155.61,155.6,7.91]
[1727698180744,3.2133,155.6,155.58,7.91]
[1727698184148,0.12502,155.63,155.58,7.91]
[1727698184149,3.2134,155.59,155.58,7.91]
[1727698188346,0.12502,155.63,155.58,7.91]
[1727698188554,0.12502,155.63,155.6,7.91]
[1727698189154,3.213,155.61,155.6,7.91]
[1727698190459,3.213,155.61,155.58,3.2135]
[1727698190762,8.03502,155.63,155.58,7.91]
[1727698191258,3.2133,155.6,155.58,7.91]
[1727698191856,8.03502,155.63,155.58,7.91]
[1727698192163,3.2134,155.59,155.58,7.91]
[1727698193656,8.03502,155.63,155.53,1.3616]
[1727698193861,3.2137,155.58,155.57,7.91]
[1727698195063,3.2135,155.59,155.57,7.91]
[1727698196064,3.2133,155.6,155.58,7.91]
[1727698196268,3.2133,155.6,155.59,7.91]
[1727698197060,1.3287,155.62,155.52,87.69485114]
[1727698197260,1.3287,155.62,155.57,7.91]
[1727698197957,3.2135,155.59,155.57,7.91]
[1727698198265,1.3287,155.62,155.58,7.91]
[1727698198659,3.2133,155.6,155.58,7.91]
[1727698200570,1.3287,155.62,155.58,7.91]
[1727698200864,3.2134,155.59,155.58,7.91]
[1727698201375,1.3287,155.62,155.52,87.69485114]
[1727698201669,3.2137,155.58,155.57,7.91]
[1727698202462,3.2131,155.61,155.57,7.91]
[1727698202663,1.3287,155.62,155.58,7.91]
[1727698203070,1.3287,155.62,155.52,87.69485114]
[1727698203071,9.2387,155.62,155.57,7.91]
[1727698203473,9.2387,155.62,155.52,87.69485114]
[1727698203474,7.91,155.61,155.56,7.91]
[1727698203674,3.2138,155.57,155.56,7.91]
[1727698204072,7.91,155.6,155.54,7.91]
[1727698204280,7.91,155.58,155.53,7.91]
[1727698205368,3.2143,155.55,155.53,7.91]
[1727698206876,3.2144,155.54,155.53,7.91]
[1727698207077,7.91,155.58,155.51,0.12502]
[1727698207278,7.91,155.57,155.51,8.03502]
[1727698207475,3.2148,155.53,155.51,8.03502]
[1727698208075,7.91,155.57,155.51,8.03502]
[1727698208375,7.91,155.57,155.51,0.12502]
[1727698208582,7.91,155.57,155.52,7.91]
[1727698208787,3.2147,155.53,155.52,7.91]
[1727698210085,3.2148,155.52,155.51,0.12502]
[1727698210383,3.2148,155.52,155.51,8.03502]
[1727698212173,9.1613,155.57,155.51,8.03502]
[1727698212775,3.2146,155.53,155.51,8.03502]
[1727698213583,3.2146,155.53,155.51,0.12502]
[1727698213783,3.2146,155.53,155.51,8.03502]
[1727698216383,3.2143,155.55,155.52,7.91]
[1727698216987,1.2328,155.59,155.54,7.91]
[1727698217188,56.51080136,155.62,155.58,7.91]
[1727698217484,56.51080136,155.62,155.6,7.91]
[1727698217677,56.51080136,155.62,155.59,7.91]
[1727698217876,56.51080136,155.62,155.56,7.91]
[1727698218088,56.51080136,155.62,155.52,2.6015]
[1727698218089,3.2138,155.57,155.55,7.91]
[1727698219383,7.91,155.58,155.53,7.91]
[1727698219890,3.2141,155.56,155.53,7.91]
[1727698220295,3.2141,155.56,155.52,1.3567]
[1727698220583,3.2141,155.56,155.54,7.91]
[1727698224783,3.2142,155.55,155.51,0.12502]
[1727698224988,2.5208,155.59,155.51,8.03502]
[1727698224989,7.91,155.57,155.51,8.03502]
[1727698225492,3.2146,155.54,155.51,8.03502]
[1727698226594,3.2146,155.53,155.51,8.03502]
[1727698229491,3.2148,155.52,155.51,0.12502]
[1727698235298,1.2798,155.58,155.51,0.12502]
[1727698235503,3.2147,155.53,155.51,8.03502]
[1727698237904,3.2147,155.53,155.51,0.12502]
[1727698238908,7.91,155.57,155.51,8.03502]
[1727698239099,7.91,155.58,155.52,7.91]
[1727698239500,3.2143,155.55,155.52,11.1247]
[1727698241807,3.2144,155.54,155.52,11.1247]
[1727698242408,7.91,155.57,155.51,0.12502]
[1727698242711,3.2147,155.53,155.51,8.03502]
[1727698245204,7.91,155.56,155.51,8.03502]
[1727698245603,5.70855326,155.59,155.51,8.03502]
[1727698245604,3.2148,155.52,155.51,0.12502]
[1727698248308,7.91,155.52,155.45,0.12502]
[1727698248509,3.216,155.47,155.45,8.03502]
[1727698248909,3.2153,155.5,155.46,7.91]
[1727698249113,9.2661,155.51,155.46,7.91]
[1727698249909,3.2156,155.49,155.46,11.126]
[1727698250708,3.2156,155.49,155.46,7.91]
[1727698252516,9.2661,155.51,155.46,7.91]
[1727698252719,3.2156,155.48,155.46,7.91]
[1727698255524,3.2155,155.49,155.46,7.91]
[1727698257616,3.2159,155.47,155.45,0.12502]
[1727698258223,7.91,155.49,155.45,0.12502]
[1727698259122,3.2157,155.48,155.45,0.12502]
[1727698261029,3.2157,155.48,155.46,7.91]
[1727698262229,3.2151,155.51,155.48,3.2156]
[1727698262429,10.5737,155.56,155.5,7.91]
[1727698262627,10.5737,155.56,155.45,0.12502]
[1727698262628,2.6637,155.56,155.52,7.91]
[1727698262824,3.2145,155.54,155.52,7.91]
[1727698263231,10.5737,155.56,155.52,7.91]
[1727698263830,7.91,155.55,155.49,3.2153]
[1727698264025,7.91,155.55,155.5,7.91]
[1727698264229,2.6637,155.56,155.5,7.91]
[1727698264431,3.2147,155.53,155.5,11.1251]
[1727698264632,3.2147,155.53,155.51,7.91]
[1727698265435,3.2148,155.52,155.51,7.91]
[1727698270939,7.91,155.53,155.46,1.2399]
[1727698271139,7.91,155.52,155.45,0.12502]
[1727698271331,7.91,155.52,155.47,7.91]
[1727698272042,3.2156,155.49,155.45,3.34122]
[1727698272338,3.2156,155.49,155.46,7.91]
[1727698272635,3.2158,155.48,155.45,8.03502]
[1727698273139,7.91,155.5,155.45,0.12502]
[1727698273335,7.91,155.5,155.45,8.03502]
[1727698274133,3.2157,155.48,155.45,8.03502]
[1727698274638,3.2157,155.48,155.46,7.91]
[1727698275038,3.2157,155.48,155.45,0.12502]
[1727698275240,3.2159,155.47,155.45,8.03502]
[1727698275832,3.2161,155.46,155.45,8.03502]
[1727698276236,3.2161,155.46,155.45,0.12502]
[1727698285631,1.3484,155.48,155.45,0.12502]
[1727698285845,3.2159,155.47,155.45,8.03502]
[1727698287337,3.2159,155.47,155.45,11.25112]
[1727698288149,3.2154,155.49,155.46,7.91]
[1727698289241,3.2154,155.49,155.46,11.1259]
[1727698290047,3.2157,155.48,155.46,11.1259]
[1727698290742,3.2157,155.48,155.45,3.34122]
[1727698291950,3.2157,155.48,155.45,0.12502]
[1727698292341,7.91,155.5,155.45,0.12502]
[1727698292950,3.2158,155.48,155.45,0.12502]
[1727698296551,3.2158,155.48,155.45,3.34132]
[1727698298452,7.91,155.5,155.46,7.91]
[1727698298850,7.91,155.5,155.46,11.126]
[1727698299242,3.2156,155.49,155.46,11.126]
[1727698302862,3.2158,155.48,155.46,7.91]
[1727698303561,3.2158,155.48,155.45,3.34122]
[1727698306364,7.91,155.48,155.45,0.12502]
[1727698306662,3.2161,155.46,155.45,0.12502]
[1727698310667,12.3586,155.46,155.45,0.12502]
[1727698311665,4.4486,155.46,155.45,0.12502]
[1727698312756,3.2161,155.46,155.45,0.12502]
[1727698316268,4.50351783,155.51,155.48,3.2155]
[1727698316269,3.2151,155.51,155.48,3.2155]
[1727698316477,3.2151,155.51,155.45,8.03502]
[1727698316478,3.2151,155.51,155.49,7.91]
[1727698316766,3.2151,155.51,155.49,11.1254]
[1727698318466,3.2151,155.51,155.49,7.91]
[1727698322775,7.91,155.54,155.46,1.3056]
[1727698322976,3.2155,155.49,155.48,7.91]
[1727698324779,3.2155,155.49,155.47,3.2158]
[1727698324975,3.2155,155.49,155.48,7.91]
[1727698325278,1.3552,155.56,155.48,7.91]
[1727698325575,1.3552,155.56,155.5,3.2151]
[1727698325778,9.2652,155.56,155.5,3.2151]
[1727698326277,7.91,155.55,155.5,3.2151]
[1727698326472,7.91,155.55,155.49,3.2153]
[1727698326667,7.91,155.55,155.49,11.1253]
[1727698327173,3.215,155.52,155.49,11.1253]
[1727698328775,3.215,155.51,155.49,11.1253]
[1727698329076,3.215,155.51,155.49,7.91]
[1727698329774,1.3552,155.56,155.5,7.91]
[1727698329973,1.3552,155.56,155.53,7.91]
[1727698330173,3.2144,155.54,155.53,7.91]
[1727698330373,1.3552,155.56,155.53,7.91]
[1727698330768,1.3552,155.56,155.54,7.91]
[1727698331279,1.3552,155.56,155.55,7.91]
[1727698331865,1.3552,155.56,155.55,11.1242]
[1727698332977,3.33892,155.57,155.55,11.1242]
[1727698333174,0.12502,155.57,155.55,11.1242]
[1727698333973,3.33882,155.57,155.55,11.1242]
[1727698334275,0.12502,155.57,155.5,69.46]
[1727698334473,3.2145,155.54,155.51,7.91]
[1727698334678,3.2145,155.54,155.52,7.91]
[1727698335385,3.2145,155.54,155.53,7.91]
[1727698335774,3.2143,155.55,155.53,11.1246]
[1727698337781,3.2143,155.55,155.53,7.91]
[1727698337983,3.2143,155.55,155.52,3.2147]
[1727698338278,3.2144,155.54,155.52,7.91]
[1727698338670,3.2143,155.55,155.52,11.1247]
[1727698339684,3.2145,155.54,155.51,3.2149]
[1727698339890,3.2145,155.54,155.52,7.91]
[1727698344388,3.2145,155.54,155.53,7.91]
[1727698347487,0.12502,155.57,155.52,7.91]
[1727698347791,3.2148,155.53,155.51,7.91]
[1727698348785,3.2148,155.53,155.52,7.91]
[1727698351187,3.2148,155.53,155.47,2.6728]
[1727698351484,3.2148,155.53,155.52,7.91]
[1727698351695,3.2149,155.52,155.5,3.2151]
[1727698351893,1.2701,155.56,155.51,7.91]
[1727698352091,1.2701,155.56,155.53,7.91]
[1727698352288,3.2144,155.54,155.53,7.91]
[1727698354795,3.2147,155.53,155.51,3.215]
[1727698355097,3.2147,155.53,155.52,7.91]
[1727698356593,3.2145,155.54,155.52,11.1247]
[1727698356793,3.2145,155.54,155.53,7.91]
[1727698360298,1.2701,155.56,155.53,7.91]
[1727698360299,3.2143,155.55,155.53,11.1246]
[1727698360498,3.2143,155.55,155.54,7.91]
[1727698362014,3.2143,155.55,155.52,3.2147]
[1727698362204,3.2143,155.55,155.54,7.91]
[1727698363605,3.2145,155.54,155.52,3.2147]
[1727698363802,1.45992,155.57,155.55,3.2142]
[1727698363803,0.12502,155.57,155.55,3.2142]
[1727698364006,0.12502,155.57,155.56,7.91]
[1727698365315,3.33892,155.57,155.56,7.91]
[1727698365516,0.12502,155.57,155.56,11.124]
[1727698368608,0.12502,155.57,155.56,7.91]
[1727698369414,0.12502,155.57,155.56,11.124]
[1727698369610,0.12502,155.57,155.52,3.21649086]
[1727698369915,0.12502,155.57,155.56,7.91]
[1727698370214,3.33882,155.57,155.56,7.91]
[1727698371116,0.12502,155.57,155.56,7.91]
[1727698372207,3.33882,155.57,155.56,7.91]
[1727698373724,3.33882,155.57,155.55,3.2141]
[1727698373933,3.33882,155.57,155.56,7.91]
[1727698375223,3.2144,155.54,155.51,3.2149]
[1727698375419,0.12502,155.57,155.53,7.91]
[1727698375714,0.12502,155.57,155.55,7.91]
[1727698375715,3.214,155.56,155.55,7.91]
[1727698379421,3.2142,155.55,155.52,3.2147]
[1727698379627,3.2142,155.55,155.54,7.91]
[1727698381325,0.12502,155.57,155.48,1.3009]
[1727698381516,3.2146,155.53,155.52,7.91]
[1727698383923,8.03502,155.57,155.48,1.3009]
[1727698384118,3.2152,155.51,155.49,13.42991027]
[1727698384319,3.2152,155.51,155.48,1.3009]
[1727698384523,2.619,155.56,155.5,6.19096007]
[1727698384524,7.91,155.54,155.5,6.19096007]
[1727698384727,7.91,155.54,155.49,7.91]
[1727698386220,3.2152,155.5,155.49,7.91]
[1727698387525,7.91,155.53,155.45,0.12502]
[1727698387729,3.2158,155.48,155.47,7.91]
[1727698387925,3.2158,155.48,155.47,6.19771105]
[1727698388521,1.3344,155.5,155.46,7.91]
[1727698388731,3.2158,155.47,155.46,7.91]
[1727698388924,3.2158,155.47,155.46,14.11011647]
[1727698389237,3.2158,155.47,155.46,6.20011647]
[1727698389532,3.2158,155.47,155.46,14.11011647]
[1727698390522,3.2158,155.47,155.46,7.91]
[1727698390726,3.2158,155.47,155.46,14.10952351]
[1727698391131,3.2161,155.46,155.45,0.12502]
[1727698391339,3.2161,155.46,155.45,6.32389782]
[1727698392430,3.2161,155.46,155.45,6.32369657]
[1727698393330,3.2161,155.46,155.45,0.12502]
[1727698395034,3.2169,155.42,155.41,15.16106951]
[1727698395231,3.2169,155.42,155.41,14.10648024]
[1727698397334,3.2169,155.42,155.41,6.19648024]
[1727698398240,3.2169,155.42,155.4,7.91]
[1727698398540,3.2171,155.41,155.4,7.91]
[1727698398739,3.2171,155.41,155.4,14.10155197]
[1727698399136,3.2171,155.41,155.39,0.12502]
[1727698399335,3.2168,155.43,155.39,8.03502]
[1727698399539,9.1581,155.44,155.39,8.03502]
[1727698400042,3.2172,155.41,155.39,8.03502]
[1727698403840,3.2173,155.4,155.39,0.12502]
[1727698407839,3.2173,155.4,155.39,8.03502]
[1727698411147,10.477,155.44,155.39,8.03502]
[1727698411346,3.2172,155.41,155.39,8.03502]
[1727698412248,3.2173,155.4,155.39,8.03502]
[1727698422953,7.91,155.43,155.39,8.03502]
[1727698423161,6.4313,155.49,155.42,7.91]
[1727698423354,9.2565,155.49,155.43,7.91]
[1727698423553,9.2565,155.49,155.45,7.91]
[1727698425364,3.2161,155.46,155.45,7.91]
[1727698425554,1.3465,155.49,155.45,7.91]
[1727698425759,1.3465,155.49,155.47,7.91]
[1727698427368,3.2158,155.48,155.47,7.91]
[1727698430462,0.12502,155.51,155.47,7.91]
[1727698430763,0.12502,155.51,155.48,7.91]
[1727698430968,0.12502,155.51,155.48,11.1256]
[1727698430969,3.34022,155.51,155.48,11.1256]
[1727698432071,3.2152,155.5,155.48,11.1256]
[1727698432369,0.12502,155.51,155.48,11.1256]
[1727698432570,0.12502,155.51,155.5,7.91]
[1727698433257,3.34022,155.51,155.5,7.91]
[1727698436572,3.2154,155.5,155.48,7.91]
[1727698438275,3.2154,155.49,155.48,7.91]
[1727698440777,3.2159,155.47,155.43,3.2166]
[1727698440973,3.2159,155.47,155.46,7.91]
[1727698442476,7.91,155.5,155.45,7.91]
[1727698442674,3.41632211,155.51,155.46,7.91]
[1727698442675,11.32632211,155.51,155.46,7.91]
[1727698443775,3.2161,155.46,155.43,3.2165]
[1727698443977,3.2161,155.46,155.45,7.91]
[1727698446386,3.2164,155.45,155.44,7.91]
[1727698449579,3.2161,155.46,155.44,7.91]
[1727698449987,7.91,155.49,155.44,7.91]
[1727698450379,3.2163,155.46,155.44,7.91]
[1727698450575,7.91,155.49,155.43,3.2166]
[1727698450780,7.91,155.49,155.44,7.91]
[1727698451585,3.2163,155.45,155.44,7.91]
[1727698454286,1.3091,155.48,155.44,7.91]
[1727698454486,3.2161,155.46,155.44,7.91]
[1727698457094,3.2161,155.46,155.43,3.2167]
[1727698457283,3.2161,155.46,155.45,7.91]
[1727698460491,1.3478,155.5,155.45,11.1263]
[1727698460681,1.3478,155.5,155.47,7.91]
[1727698461091,3.2157,155.48,155.47,7.91]
[1727698461385,1.3478,155.5,155.46,7.91]
[1727698461581,3.2161,155.47,155.45,7.91]
[1727698462691,3.2155,155.49,155.45,7.91]
[1727698462899,1.3478,155.5,155.45,7.91]
[1727698463593,3.2155,155.49,155.45,7.91]
[1727698463897,1.3478,155.5,155.45,7.91]
[1727698464996,3.2161,155.46,155.45,7.91]
[1727698465794,3.2159,155.47,155.45,11.1263]
[1727698468607,3.2159,155.47,155.45,7.91]
[1727698468900,1.3478,155.5,155.45,7.91]
[1727698469203,3.2161,155.46,155.45,7.91]
[1727698471108,1.3478,155.5,155.45,7.91]
[1727698471299,1.3478,155.5,155.46,7.91]
[1727698472405,3.2158,155.47,155.45,11.1261]
[1727698474894,3.2158,155.47,155.46,7.91]
[1727698476307,56.67390093,155.51,155.46,7.91]
[1727698476505,3.2153,155.5,155.49,7.91]
[1727698480006,0.12502,155.51,155.5,3.2152]
[1727698480214,0.12502,155.51,155.5,11.1252]
[1727698482808,3.2142,155.55,155.5,7.91]
[1727698483014,11.06153714,155.61,155.54,11.1244]
[1727698483204,11.06153714,155.61,155.56,7.91]
[1727698484005,3.33882,155.57,155.56,7.91]
[1727698485006,0.12502,155.57,155.56,7.91]
[1727698486207,0.12502,155.57,155.56,11.124]
[1727698486704,0.12502,155.57,155.56,7.91]
[1727698489424,3.33882,155.57,155.56,7.91]
[1727698497929,3.2128,155.62,155.58,3.2134]
[1727698498130,0.12502,155.63,155.61,7.91]
[1727698498835,0.12502,155.63,155.59,6.34784351]
[1727698499036,0.12502,155.63,155.62,7.91]
[1727698500335,3.2125,155.64,155.62,7.91]
[1727698500530,3.212,155.66,155.62,7.91]
[1727698500836,3.212,155.66,155.65,7.91]
[1727698508445,3.2119,155.66,155.65,7.91]
[1727698510747,3.2117,155.67,155.65,7.91]
[1727698510940,0.12502,155.69,155.66,7.91]
[1727698511244,0.12502,155.69,155.68,7.91]
[1727698511443,2.596,155.74,155.68,7.91]
[1727698511645,2.596,155.74,155.63,1.43472]
[1727698511646,2.596,155.74,155.72,7.91]
[1727698512942,3.2105,155.73,155.72,7.91]
[1727698514536,4.447,155.74,155.72,7.91]
[1727698514740,3.2103,155.74,155.72,7.91]
[1727698514943,0.12502,155.75,155.72,7.91]
[1727698515150,3.33522,155.75,155.72,7.91]
[1727698515348,3.33522,155.75,155.74,7.91]
[1727698515548,0.12502,155.75,155.74,7.91]
[1727698516549,0.12502,155.75,155.74,3.2103]
[1727698516750,0.12502,155.75,155.74,7.91]
[1727698519450,0.12502,155.75,155.74,11.1203]
[1727698520542,0.12502,155.75,155.71,3.17244701]
[1727698520743,0.12502,155.75,155.74,7.91]
[1727698521345,0.12502,155.75,155.74,11.1203]
[1727698523343,0.12502,155.81,155.74,7.91]
[1727698523544,0.12502,155.81,155.77,7.91]
[1727698523749,0.12502,155.81,155.79,7.91]
[1727698524845,3.33392,155.81,155.79,7.91]
[1727698525255,3.33392,155.81,155.76,3.2098]
[1727698525456,3.33392,155.81,155.78,7.91]
[1727698527350,3.209,155.8,155.78,7.91]
[1727698528957,3.33392,155.81,155.78,7.91]
[1727698530856,3.33392,155.81,155.8,7.91]
[1727698531246,0.12502,155.81,155.8,7.91]
[1727698532568,3.33382,155.81,155.8,7.91]
[1727698532752,3.33382,155.81,155.78,7.91]
[1727698532953,3.33382,155.81,155.7,71.9952]
[1727698532954,0.12502,155.81,155.8,7.91]
[1727698533156,0.12502,155.81,155.8,11.119]
[1727698534969,3.33402,155.81,155.79,7.91]
[1727698535168,0.12502,155.81,155.7,71.9952]
[1727698535359,0.76002,155.81,155.77,7.91]
[1727698535865,0.76002,155.81,155.79,7.91]
[1727698536468,0.76002,155.81,155.7,75.2358575]
[1727698536469,0.76002,155.81,155.8,7.91]
[1727698536759,4.58763067,155.86,155.8,7.91]
[1727698536962,4.58763067,155.86,155.85,7.91]
[1727698536963,1.3123,155.86,155.85,7.91]
[1727698537769,4.5202,155.86,155.85,7.91]
[1727698537971,4.5202,155.86,155.78,3.23873121]
[1727698538172,4.5202,155.86,155.85,7.91]
[1727698538471,1.3123,155.86,155.85,7.91]
[1727698538959,4.5203,155.86,155.85,7.91]
[1727698541963,3.2078,155.86,155.85,7.91]
[1727698543858,0.12502,155.87,155.85,7.91]
[1727698544169,3.33262,155.87,155.86,7.91]
[1727698547270,3.33262,155.87,155.85,7.91]
[1727698551572,3.2079,155.86,155.83,3.2083]
[1727698551773,3.2079,155.86,155.77,69.32]
[1727698551774,3.2079,155.86,155.85,7.91]
[1727698555073,3.33272,155.87,155.85,7.91]
[1727698555268,3.33272,155.87,155.86,7.91]
[1727698555675,3.33272,155.87,155.83,3.2083]
[1727698555676,0.12502,155.87,155.83,3.2083]
[1727698555879,3.2078,155.86,155.85,7.91]
[1727698556370,3.2078,155.86,155.83,3.2083]
[1727698556571,3.2078,155.86,155.85,7.91]
[1727698560484,3.2083,155.84,155.77,69.32]
[1727698560777,7.91,155.82,155.76,1.3505]
[1727698560984,7.91,155.82,155.77,7.91]
[1727698561285,3.2092,155.8,155.77,7.91]
[1727698561484,7.91,155.82,155.78,7.91]
[1727698562278,3.2092,155.8,155.78,7.91]
[1727698562482,7.91,155.82,155.78,7.91]
[1727698563373,7.91,155.81,155.75,84.46886418]
[1727698563584,7.91,155.79,155.75,84.46886418]
[1727698563887,3.2099,155.76,155.75,0.12502]
[1727698565284,3.2099,155.76,155.75,8.03502]
[1727698565684,3.2099,155.76,155.75,0.12502]
[1727698568783,11.1199,155.76,155.75,0.12502]
[1727698569981,3.2099,155.76,155.75,0.12502]
[1727698571789,11.1199,155.76,155.75,0.12502]
[1727698573099,3.2099,155.76,155.75,0.12502]
[1727698575197,3.2096,155.78,155.75,11.24502]
[1727698575397,1.3466,155.8,155.77,7.91]
[1727698575596,1.3466,155.8,155.76,7.91]
[1727698576002,3.2098,155.77,155.76,7.91]
[1727698588423,3.8448,155.77,155.76,7.91]
[1727698596431,0.635,155.77,155.76,11.1199]
[1727698599026,3.8447,155.77,155.76,7.91]
[1727698600630,3.2099,155.76,155.75,0.12502]
[1727698603027,3.2099,155.76,155.75,8.03502]
[1727698607241,3.2097,155.77,155.75,11.24502]
[1727698607445,3.2097,155.77,155.76,7.91]
[1727698608247,3.2093,155.79,155.75,8.03502]
[1727698608435,9.2566,155.8,155.75,8.03502]
[1727698608943,3.2098,155.77,155.75,8.03502]
[1727698609633,3.2098,155.77,155.75,11.24502]
[1727698615244,3.2098,155.77,155.75,3.33502]
[1727698615443,3.2098,155.77,155.75,11.24502]
[1727698615940,3.2099,155.76,155.75,0.12502]
[1727698626445,11.1199,155.76,155.75,0.12502]
[1727698630945,7.91,155.76,155.66,7.95114031]
[1727698631253,7.91,155.73,155.7,6.18570264]
[1727698631450,7.91,155.73,155.71,6.18570264]
[1727698631652,3.2111,155.7,155.69,8.03502]
[1727698631947,7.91,155.73,155.69,21.45946659]
[1727698632148,3.2107,155.72,155.7,6.1866878]
[1727698632451,3.2107,155.72,155.71,6.1866878]
[1727698633050,3.211,155.71,155.69,11.24622]
[1727698633249,3.211,155.71,155.7,6.18709196]
[1727698633748,3.211,155.71,155.69,8.03502]
[1727698633946,3.2109,155.71,155.7,6.18670429]
[1727698634548,3.2111,155.7,155.69,0.12502]
[1727698634749,3.2111,155.7,155.69,6.31258709]
[1727698634952,11.1211,155.7,155.69,0.12502]
[1727698635156,11.1211,155.7,155.64,11.58556243]
[1727698635157,3.2121,155.66,155.64,11.58556243]